fUSD/lending_fUSD_20250720
["ID","MTS","AMOUNT","RATE_DAILY","PERIOD"]
[373468581,1753017102309,-2587.61,0.00020164,2]
[373468582,1753017102319,-508.38,0.00020164,2]
[373468583,1753017102328,-887.97,0.00020164,2]
[373468584,1753017102337,-480.0,0.00020164,2]
[373468585,1753017102346,-527.84,0.00020164,2]
[373468586,1753017102356,-151.0,0.00020164,2]
[373468587,1753017102365,-885.97,0.00020164,2]
[373468588,1753017102374,-480.0,0.00020164,2]
[373468589,1753017102384,-649.01,0.00020164,2]
[373468590,1753017102394,-1167.69,0.00020164,2]
[373468591,1753017102403,-480.0,0.00020164,2]
[373468592,1753017102413,-596.23,0.00020164,2]
[373468593,1753017102423,-981.05,0.00020164,2]
[373468594,1753017102435,-951.99,0.00020164,2]
[373468595,1753017102444,-1569.89,0.00020164,2]
[373468596,1753017102454,-979.63,0.00020164,2]
[373468597,1753017102464,-480.0,0.00020164,2]
[373468598,1753017102473,-440.75293536,0.00020164,2]
[373468599,1753017102483,-1103.5,0.00020164,2]
[373468600,1753017102493,-480.0,0.00020164,2]
[373468601,1753017102504,-480.0,0.00020164,2]
[373468602,1753017102515,-480.0,0.00020164,2]
[373468603,1753017102526,-611.3,0.00020164,2]
[373468604,1753017102536,-780.54,0.00020164,2]
[373468605,1753017102545,-480.0,0.00020164,2]
[373468606,1753017102557,-445.48196062,0.00020164,2]
[373468607,1753017102568,-480.0,0.00020164,2]
[373468608,1753017102579,-682.46,0.00020164,2]
[373468609,1753017102590,-151.0,0.00020164,2]
[373468610,1753017102600,-329.06980522,0.00020164,2]
[373468611,1753017102610,-1603.58,0.00020164,2]
[373468612,1753017102620,-151.0,0.00020164,2]
[373468613,1753017102630,-932.82,0.00020164,2]
[373468614,1753017102639,-1481.32,0.00020164,2]
[373468615,1753017102649,-958.44,0.00020164,2]
[373468616,1753017102659,-480.0,0.00020164,2]
[373468617,1753017102668,-480.0,0.00020164,2]
[373468618,1753017102681,-480.0,0.00020164,2]
[373468619,1753017102691,-577.7,0.00020164,2]
[373468620,1753017102700,-480.0,0.00020164,2]
[373468621,1753017102711,-739.86,0.00020164,2]
[373468622,1753017102722,-151.0,0.00020164,2]
[373468623,1753017102732,-649.08,0.00020164,2]
[373468624,1753017102742,-480.0,0.00020164,2]
[373468625,1753017102753,-513.0,0.00020164,2]
[373468626,1753017102763,-838.97,0.00020164,2]
[373468627,1753017102777,-3028.24,0.00020164,2]
[373468628,1753017102787,-151.0,0.00020164,2]
[373468629,1753017102796,-565.62,0.00020164,2]
[373468630,1753017102807,-1906.31,0.00020164,2]
[373468631,1753017102818,-853.59,0.00020164,2]
[373468632,1753017102827,-480.0,0.00020164,2]
[373468633,1753017102837,-151.0,0.00020164,2]
[373468634,1753017102848,-480.0,0.00020164,2]
[373468635,1753017102859,-480.0,0.00020164,2]
[373468636,1753017102870,-1696.96,0.00020164,2]
[373468637,1753017102879,-480.0,0.00020164,2]
[373468638,1753017102890,-981.38,0.00020164,2]
[373468639,1753017102900,-2026.54,0.00020164,2]
[373468640,1753017102911,-823.88,0.00020164,2]
[373468641,1753017102920,-480.0,0.00020164,2]
[373468642,1753017102930,-963.41,0.00020164,2]
[373468643,1753017102939,-830.46,0.00020164,2]
[373468644,1753017102949,-151.0,0.00020164,2]
[373468645,1753017102958,-5709.5,0.00020164,2]
[373468646,1753017102968,-569.92,0.00020164,2]
[373468647,1753017102978,-480.0,0.00020164,2]
[373468648,1753017102987,-648.1,0.00020164,2]
[373468649,1753017102997,-480.0,0.00020164,2]
[373468650,1753017103007,-1388.48,0.00020164,2]
[373468651,1753017103017,-729.74,0.00020164,2]
[373468652,1753017103027,-155.154919,0.00020164,2]
[373468653,1753017103203,-827.12,0.00020164,2]
[373468654,1753017103213,-5215.18,0.00020164,2]
[373468655,1753017103223,-1044.1,0.00020164,2]
[373468656,1753017103234,-2977.2,0.00020164,2]
[373468657,1753017103243,-838.71,0.00020164,2]
[373468658,1753017103253,-254.61771026,0.00020164,2]
[373468659,1753017103264,-993.38,0.00020164,2]
[373468660,1753017103274,-480.0,0.00020164,2]
[373468661,1753017103284,-738.73,0.00020164,2]
[373468662,1753017103293,-480.0,0.00020164,2]
[373468663,1753017103303,-942.6,0.00020164,2]
[373468664,1753017103313,-480.0,0.00020164,2]
[373468665,1753017103322,-480.0,0.00020164,2]
[373468666,1753017103331,-480.0,0.00020164,2]
[373468667,1753017103341,-846.89,0.00020164,2]
[373468668,1753017103351,-480.0,0.00020164,2]
[373468669,1753017103360,-1356.61,0.00020164,2]
[373468670,1753017103370,-1055.73,0.00020164,2]
[373468671,1753017103379,-1058.94,0.00020164,2]
[373468672,1753017103389,-480.0,0.00020164,2]
[373468673,1753017103398,-480.0,0.00020164,2]
[373468674,1753017103407,-950.68,0.00020164,2]
[373468675,1753017103417,-517.18,0.00020164,2]
[373468676,1753017103427,-480.0,0.00020164,2]
[373468677,1753017103437,-2178.9,0.00020164,2]
[373468678,1753017103447,-530.25,0.00020164,2]
[373468679,1753017103456,-947.79,0.00020164,2]
[373468680,1753017103467,-805.2,0.00020164,2]
[373468681,1753017103477,-718.39,0.00020164,2]
[373468682,1753017103487,-1183.55,0.00020164,2]
[373468683,1753017103497,-2110.58,0.00020164,2]
[373468684,1753017103506,-151.0,0.00020164,2]
[373468685,1753017103516,-967.68,0.00020164,2]
[373468686,1753017103527,-480.0,0.00020164,2]
[373468687,1753017103537,-480.0,0.00020164,2]
[373468688,1753017103547,-2353.52,0.00020164,2]
[373468689,1753017103557,-4098.43,0.00020164,2]
[373468690,1753017103568,-1024.32,0.00020164,2]
[373468691,1753017103578,-2123.97,0.00020164,2]
[373468692,1753017103587,-696.21,0.00020164,2]
[373468693,1753017103597,-625.29,0.00020164,2]
[373468694,1753017103607,-644.66,0.00020164,2]
[373468695,1753017103616,-480.0,0.00020164,2]
[373468696,1753017103625,-577.79,0.00020164,2]
[373468697,1753017103636,-1455.7,0.00020164,2]
[373468698,1753017103645,-4394.04,0.00020164,2]
[373468699,1753017103659,-480.0,0.00020164,2]
[373468700,1753017103670,-151.0,0.00020164,2]
[373468701,1753017103681,-151.0,0.00020164,2]
[373468702,1753017103694,-631.76,0.00020164,2]
[373468703,1753017103707,-3043.65,0.00020164,2]
[373468704,1753017103720,-1305.74,0.00020164,2]
[373468705,1753017103730,-480.0,0.00020164,2]
[373468706,1753017103741,-5028.52,0.00020164,2]
[373468707,1753017103752,-1482.98,0.00020164,2]
[373468708,1753017103764,-480.0,0.00020164,2]
[373468709,1753017103776,-662.54,0.00020164,2]
[373468710,1753017103792,-937.5,0.00020164,2]
[373468711,1753017103804,-238.75,0.00020164,2]
[373468712,1753017103815,-480.0,0.00020164,2]
[373468713,1753017103826,-1666.2,0.00020164,2]
[373468714,1753017103839,-1222.76,0.00020164,2]
[373468715,1753017103849,-756.17,0.00020164,2]
[373468716,1753017103862,-1645.82,0.00020164,2]
[373468717,1753017103873,-541.13,0.00020164,2]
[373468718,1753017103883,-1403.01,0.00020164,2]
[373468719,1753017103894,-480.0,0.00020164,2]
[373468720,1753017103904,-480.0,0.00020164,2]
[373468721,1753017103914,-1593.89,0.00020164,2]
[373468722,1753017103924,-480.0,0.00020164,2]
[373468723,1753017103934,-480.0,0.00020164,2]
[373468724,1753017103945,-206.024296,0.00020164,2]
[373468725,1753017103955,-480.0,0.00020164,2]
[373468726,1753017103964,-1264.81,0.00020164,2]
[373468727,1753017103974,-602.57,0.00020164,2]
[373468728,1753017103984,-206.024296,0.00020164,2]
[373468729,1753017103994,-628.9,0.00020164,2]
[373468730,1753017104004,-1769.9,0.00020164,2]
[373468731,1753017104014,-2894.53,0.00020164,2]
[373468732,1753017104026,-500.0,0.00020164,2]
[373468733,1753017104036,-1048.92,0.00020164,2]
[373468734,1753017104046,-1096.7,0.00020164,2]
[373468735,1753017104057,-1017.95,0.00020164,2]
[373468736,1753017104067,-1674.97,0.00020164,2]
[373468737,1753017104077,-480.0,0.00020164,2]
[373468738,1753017104087,-1796.0,0.00020164,2]
[373468739,1753017104097,-618.11,0.00020164,2]
[373468740,1753017104109,-3402.31,0.00020164,2]
[373468741,1753017104120,-673.18,0.00020164,2]
[373468742,1753017104129,-1540.15,0.00020164,2]
[373468743,1753017104139,-480.0,0.00020164,2]
[373468744,1753017104148,-238.692887,0.00020164,2]
[373468745,1753017104158,-3514.33,0.00020164,2]
[373468746,1753017104167,-238.692887,0.00020164,2]
[373468747,1753017104178,-1724.33,0.00020164,2]
[373468748,1753017104187,-480.0,0.00020164,2]
[373468749,1753017104197,-900.091736,0.00020164,2]
[373468750,1753017104206,-2932.34,0.00020164,2]
[373468751,1753017104216,-1323.7,0.00020164,2]
[373468752,1753017104226,-1852.55,0.00020164,2]
[373468753,1753017104235,-845.83,0.00020164,2]
[373468754,1753017104245,-185.33718156,0.00020164,2]
[373468755,1753017104254,-1157.0,0.00020164,2]
[373468756,1753017104264,-559.68,0.00020164,2]
[373468757,1753017104276,-900.091736,0.00020164,2]
[373468758,1753017104285,-671.29,0.00020164,2]
[373468759,1753017104294,-1185.66,0.00020164,2]
[373468760,1753017104304,-900.26,0.00020164,2]
[373468761,1753017104313,-1261.2,0.00020164,2]
[373468762,1753017104323,-1672.17,0.00020164,2]
[373468763,1753017104333,-480.0,0.00020164,2]
[373468764,1753017104343,-480.0,0.00020164,2]
[373468765,1753017104353,-4413.57,0.00020164,2]
[373468766,1753017104363,-263.845789,0.00020164,2]
[373468767,1753017104373,-189.075431,0.00020164,2]
[373468768,1753017104383,-480.0,0.00020164,2]
[373468769,1753017104393,-722.76,0.00020164,2]
[373468770,1753017104403,-755.77,0.00020164,2]
[373468771,1753017104413,-4158.01,0.00020164,2]
[373468772,1753017104423,-2463.68,0.00020164,2]
[373468773,1753017104434,-263.845789,0.00020164,2]
[373468774,1753017104443,-926.36,0.00020164,2]
[373468775,1753017104454,-1895.02,0.00020164,2]
[373468776,1753017104463,-151.0,0.00020164,2]
[373468777,1753017104473,-758.0,0.00020164,2]
[373468778,1753017104483,-1614.88,0.00020164,2]
[373468779,1753017104493,-480.0,0.00020164,2]
[373468780,1753017104503,-480.0,0.00020164,2]
[373468781,1753017104512,-2738.51,0.00020164,2]
[373468782,1753017104523,-1019.8,0.00020164,2]
[373468783,1753017104533,-480.0,0.00020164,2]
[373468784,1753017104542,-728.28,0.00020164,2]
[373468785,1753017104552,-671.87,0.00020164,2]
[373468786,1753017104562,-549.4,0.00020164,2]
[373468787,1753017104572,-480.0,0.00020164,2]
[373468788,1753017104582,-2824.54,0.00020164,2]
[373468789,1753017104591,-541.64,0.00020164,2]
[373468790,1753017104600,-5142.63,0.00020164,2]
[373468791,1753017104611,-978.7,0.00020164,2]
[373468792,1753017104620,-4422.78,0.00020164,2]
[373468793,1753017104630,-759.39,0.00020164,2]
[373468794,1753017104639,-5113.01,0.00020164,2]
[373468795,1753017104649,-1685.16,0.00020164,2]
[373468796,1753017104658,-480.0,0.00020164,2]
[373468797,1753017104668,-657.21,0.00020164,2]
[373468798,1753017104678,-983.37,0.00020164,2]
[373468799,1753017104687,-1817.04,0.00020164,2]
[373468800,1753017104697,-601.7,0.00020164,2]
[373468801,1753017104707,-507.64,0.00020164,2]
[373468802,1753017104716,-929.57,0.00020164,2]
[373468803,1753017104726,-833.88,0.00020164,2]
[373468804,1753017104736,-731.23,0.00020164,2]
[373468805,1753017104746,-151.0,0.00020164,2]
[373468806,1753017104755,-151.0,0.00020164,2]
[373468807,1753017104766,-1000.0,0.00020164,2]
[373468808,1753017104779,-12606.02,0.00020164,2]
[373468809,1753017104789,-1549.75,0.00020164,2]
[373468810,1753017104799,-151.0,0.00020164,2]
[373468811,1753017104808,-1508.11,0.00020164,2]
[373468812,1753017104819,-1419.97,0.00020164,2]
[373468813,1753017104828,-2260.87,0.00020164,2]
[373468814,1753017104838,-504.82,0.00020164,2]
[373468815,1753017104848,-800.6,0.00020164,2]
[373468816,1753017104857,-626.65,0.00020164,2]
[373468817,1753017104869,-665.1,0.00020164,2]
[373468818,1753017104878,-1744.39,0.00020164,2]
[373468819,1753017104888,-1056.09,0.00020164,2]
[373468820,1753017104899,-480.0,0.00020164,2]
[373468821,1753017104908,-796.56,0.00020164,2]
[373468822,1753017104918,-752.54,0.00020164,2]
[373468823,1753017104927,-1650.61,0.00020164,2]
[373468824,1753017104937,-788.92,0.00020164,2]
[373468825,1753017104946,-165.681454,0.00020164,2]
[373468826,1753017104957,-168.32362,0.00020164,2]
[373468827,1753017104966,-1127.31,0.00020164,2]
[373468828,1753017104976,-943.92,0.00020164,2]
[373468829,1753017104985,-986.58,0.00020164,2]
[373468830,1753017104995,-1461.67,0.00020164,2]
[373468831,1753017105004,-2098.14,0.00020164,2]
[373468832,1753017105015,-1698.93,0.00020164,2]
[373468833,1753017105025,-509.14,0.00020164,2]
[373468834,1753017105035,-1313.06,0.00020164,2]
[373468835,1753017105044,-1032.49,0.00020164,2]
[373468836,1753017105054,-6885.91,0.00020164,2]
[373468837,1753017105064,-2339.59,0.00020164,2]
[373468838,1753017105073,-3053.99,0.00020164,2]
[373468839,1753017105082,-518.46,0.00020164,2]
[373468840,1753017105092,-2127.43,0.00020164,2]
[373468841,1753017105101,-2204.23,0.00020164,2]
[373468842,1753017105111,-1040.39,0.00020164,2]
[373468843,1753017105120,-607.74,0.00020164,2]
[373468844,1753017105130,-3359.94,0.00020164,2]
[373468845,1753017105140,-38027.73,0.00020164,2]
[373468846,1753017105149,-918.24,0.00020164,2]
[373468847,1753017105159,-1367.42,0.00020164,2]
[373468848,1753017105169,-995.02,0.00020164,2]
[373468849,1753017105179,-2240.44,0.00020164,2]
[373468850,1753017105188,-1323.1,0.00020164,2]
[373468851,1753017105198,-480.0,0.00020164,2]
[373468852,1753017105208,-1236.91,0.00020164,2]
[373468853,1753017105217,-2429.74,0.00020164,2]
[373468854,1753017105227,-2151.22,0.00020164,2]
[373468855,1753017105236,-1731.22,0.00020164,2]
[373468856,1753017105248,-889.82,0.00020164,2]
[373468857,1753017105257,-1271.07,0.00020164,2]
[373468858,1753017105267,-2750.09,0.00020164,2]
[373468859,1753017105276,-552.5,0.00020164,2]
[373468860,1753017105285,-500.0,0.00020173,2]
[373468861,1753017105295,-259.39506354,0.0002018,2]
[373468862,1753017105304,-2165.24,0.00020184,2]
[373468863,1753017105313,-167.76,0.00020187,2]
[373468864,1753017105322,-168.0,0.00020198,2]
[373468865,1753017105332,-24530.1771168,0.000202,2]
[373468866,1753017105342,-167.202604,0.000202,2]
[373468867,1753017105352,-167.202604,0.000202,2]
[373468868,1753017105362,-156.52,0.000202,2]
[373468869,1753017105371,-324.25,0.00020218,2]
[373468870,1753017105380,-500.0,0.00020219,2]
[373468871,1753017105390,-500.0,0.00020219,2]
[373468872,1753017105400,-150.0,0.00020219,2]
[373468873,1753017105410,-150.0,0.00020219,2]
[373468874,1753017105420,-150.0,0.00020219,2]
[373468875,1753017105431,-2163.0,0.00020219,2]
[373468876,1753017105442,-1050.0,0.00020219,2]
[373468877,1753017105452,-150.0,0.00020219,2]
[373468878,1753017105463,-518.0,0.00020219,2]
[373468879,1753017105474,-5000.0,0.00020227,2]
[373468880,1753017105484,-242.0,0.00020228,2]
[373468881,1753017105495,-12518.88,0.00020233,2]
[373468882,1753017105505,-152.0,0.00020244,5]
[373468883,1753017105515,-432.3251059,0.00020245,2]
[373468884,1753017105526,-168.0,0.00020257,2]
[373468885,1753017105536,-151.0,0.00020258,2]
[373468886,1753017105546,-152.075177,0.00020258,2]
[373468887,1753017105557,-151.0,0.00020258,2]
[373468888,1753017105567,-151.0,0.00020258,2]
[373468889,1753017105578,-900.0,0.0002026,2]
[373468890,1753017105588,-1200.0,0.0002026,2]
[373468891,1753017105598,-248.71531821,0.00020262,2]
[373468892,1753017105609,-153.375354,0.00020268,2]
[373468893,1753017105618,-151.0,0.00020268,2]
[373468894,1753017105629,-151.0,0.00020268,2]
[373468895,1753017105638,-151.0,0.00020268,2]
[373468896,1753017105648,-151.0,0.00020268,2]
[373468897,1753017105657,-151.0,0.00020268,2]
[373468898,1753017105667,-639.545385,0.00020268,2]
[373468899,1753017105676,-639.545385,0.00020268,2]
[373468900,1753017105686,-1500.0,0.00020268,2]
[373468901,1753017105695,-154.2573,0.00020273,2]
[373468902,1753017105705,-151.0,0.00020273,2]
[373468903,1753017105714,-151.0,0.00020273,2]
[373468904,1753017105724,-213.608419,0.00020273,2]
[373468905,1753017105734,-213.608419,0.00020273,2]
[373468906,1753017105744,-151.0,0.00020273,2]
[373468907,1753017105755,-151.0,0.00020273,2]
[373468908,1753017105765,-151.0,0.00020273,2]
[373468909,1753017105775,-274.904738,0.00020273,2]
[373468910,1753017105941,-151.0,0.00020273,2]
[373468911,1753017105951,-151.0,0.00020273,2]
[373468912,1753017105961,-151.0,0.00020273,2]
[373468913,1753017105971,-151.0,0.00020273,2]
[373468914,1753017105980,-151.0,0.00020273,2]
[373468915,1753017105990,-151.0,0.00020273,2]
[373468916,1753017105999,-151.0,0.00020273,2]
[373468917,1753017106008,-531.67,0.00020273,2]
[373468918,1753017106018,-151.0,0.00020273,2]
[373468919,1753017106027,-480.0,0.00020273,2]
[373468920,1753017106036,-480.0,0.00020273,2]
[373468921,1753017106045,-480.0,0.00020273,2]
[373468922,1753017106056,-522.76,0.00020273,2]
[373468923,1753017106066,-486.31,0.00020273,2]
[373468924,1753017106075,-153.620017,0.00020273,2]
[373468925,1753017106084,-480.0,0.00020273,2]
[373468926,1753017106094,-908.756426,0.00020273,2]
[373468927,1753017106104,-480.0,0.00020273,2]
[373468928,1753017106113,-480.0,0.00020273,2]
[373468929,1753017106123,-1078.6235,0.00020273,2]
[373468930,1753017106132,-1096.031062,0.00020273,2]
[373468931,1753017106142,-474.88,0.00020273,2]
[373468932,1753017106151,-480.0,0.00020273,2]
[373468933,1753017106160,-480.0,0.00020273,2]
[373468934,1753017106170,-921.73,0.00020273,2]
[373468935,1753017106179,-536.45,0.00020273,2]
[373468936,1753017106189,-631.3,0.00020273,2]
[373468937,1753017106198,-480.0,0.00020273,2]
[373468938,1753017106207,-480.0,0.00020273,2]
[373468939,1753017106216,-730.67,0.00020273,2]
[373468940,1753017106225,-920.27,0.00020273,2]
[373468941,1753017106235,-480.0,0.00020273,2]
[373468942,1753017106244,-559.71,0.00020273,2]
[373468943,1753017106254,-549.06,0.00020273,2]
[373468944,1753017106263,-480.0,0.00020273,2]
[373468945,1753017106273,-627.11,0.00020273,2]
[373468946,1753017106282,-623.45,0.00020273,2]
[373468947,1753017106291,-480.0,0.00020273,2]
[373468948,1753017106301,-480.0,0.00020273,2]
[373468949,1753017106310,-730.3,0.00020273,2]
[373468950,1753017106320,-691.2,0.00020273,2]
[373468951,1753017106329,-553.59,0.00020273,2]
[373468952,1753017106339,-503.01,0.00020273,2]
[373468953,1753017106348,-527.76,0.00020273,2]
[373468954,1753017106358,-854.71,0.00020273,2]
[373468955,1753017106378,-587.03,0.00020273,2]
[373468956,1753017106388,-633.77,0.00020273,2]
[373468957,1753017106398,-855.53,0.00020273,2]
[373468958,1753017106410,-480.0,0.00020273,2]
[373468959,1753017106419,-480.0,0.00020273,2]
[373468960,1753017106429,-480.0,0.00020273,2]
[373468961,1753017106438,-863.86,0.00020273,2]
[373468962,1753017106448,-946.66,0.00020273,2]
[373468963,1753017106458,-480.0,0.00020273,2]
[373468964,1753017106468,-286.57536287,0.00020273,2]
[373468965,1753017106478,-352.55525996,0.00020273,2]
[373468966,1753017106488,-687.85,0.00020273,2]
[373468967,1753017106498,-1039.01,0.00020273,2]
[373468968,1753017106508,-480.0,0.00020273,2]
[373468969,1753017106519,-353.84,0.00020273,2]
[373468970,1753017106530,-738.62,0.00020273,2]
[373468971,1753017106539,-480.0,0.00020273,2]
[373468972,1753017106549,-3553.23,0.00020273,2]
[373468973,1753017106559,-518.78,0.00020273,2]
[373468974,1753017106568,-480.0,0.00020273,2]
[373468975,1753017106578,-480.0,0.00020273,2]
[373468976,1753017106588,-1780.15,0.00020273,2]
[373468977,1753017106597,-480.0,0.00020273,2]
[373468978,1753017106608,-785.24,0.00020273,2]
[373468979,1753017106618,-480.0,0.00020273,2]
[373468980,1753017106628,-151.0,0.00020273,2]
[373468981,1753017106638,-480.0,0.00020273,2]
[373468982,1753017106647,-704.79,0.00020273,2]
[373468983,1753017106657,-512.33,0.00020273,2]
[373468984,1753017106667,-619.75,0.00020273,2]
[373468985,1753017106677,-480.0,0.00020273,2]
[373468986,1753017106686,-1397.47,0.00020273,2]
[373468987,1753017106696,-632.04,0.00020273,2]
[373468988,1753017106705,-480.0,0.00020273,2]
[373468989,1753017106715,-480.0,0.00020273,2]
[373468990,1753017106726,-499.9,0.00020273,2]
[373468991,1753017106735,-480.0,0.00020273,2]
[373468992,1753017106745,-202.963399,0.00020273,2]
[373468993,1753017106755,-480.0,0.00020273,2]
[373468994,1753017106764,-480.0,0.00020273,2]
[373468995,1753017106777,-561.14,0.00020273,2]
[373468996,1753017106787,-698.23,0.00020273,2]
[373468997,1753017106796,-480.0,0.00020273,2]
[373468998,1753017106806,-966.01,0.00020273,2]
[373468999,1753017106817,-480.0,0.00020273,2]
[373469000,1753017106827,-480.0,0.00020273,2]
[373469001,1753017106837,-480.0,0.00020273,2]
[373469002,1753017106848,-2587.61,0.00020273,2]
[373469003,1753017106858,-508.38,0.00020273,2]
[373469004,1753017106868,-887.97,0.00020273,2]
[373469005,1753017106879,-480.0,0.00020273,2]
[373469006,1753017106889,-527.84,0.00020273,2]
[373469007,1753017106900,-885.97,0.00020273,2]
[373469008,1753017106910,-480.0,0.00020273,2]
[373469009,1753017106921,-649.01,0.00020273,2]
[373469010,1753017106931,-1167.69,0.00020273,2]
[373469011,1753017106941,-480.0,0.00020273,2]
[373469012,1753017106951,-596.23,0.00020273,2]
[373469013,1753017106960,-981.05,0.00020273,2]
[373469014,1753017106970,-951.99,0.00020273,2]
[373469015,1753017106980,-1569.89,0.00020273,2]
[373469016,1753017106991,-979.63,0.00020273,2]
[373469017,1753017107000,-480.0,0.00020273,2]
[373469018,1753017107010,-1103.5,0.00020273,2]
[373469019,1753017107020,-480.0,0.00020273,2]
[373469020,1753017107030,-232.03589123,0.00020273,2]
[373469021,1753017107040,-480.0,0.00020273,2]
[373469022,1753017107050,-611.3,0.00020273,2]
[373469023,1753017107060,-780.54,0.00020273,2]
[373469024,1753017107070,-480.0,0.00020273,2]
[373469025,1753017107080,-682.46,0.00020273,2]
[373469026,1753017107090,-480.0,0.00020273,2]
[373469027,1753017107100,-1603.58,0.00020273,2]
[373469028,1753017107110,-932.82,0.00020273,2]
[373469029,1753017107120,-1481.32,0.00020273,2]
[373469030,1753017107130,-958.44,0.00020273,2]
[373469031,1753017107139,-480.0,0.00020273,2]
[373469032,1753017107149,-480.0,0.00020273,2]
[373469033,1753017107158,-480.0,0.00020273,2]
[373469034,1753017107168,-577.7,0.00020273,2]
[373469035,1753017107178,-480.0,0.00020273,2]
[373469036,1753017107188,-739.86,0.00020273,2]
[373469037,1753017107198,-649.08,0.00020273,2]
[373469038,1753017107207,-480.0,0.00020273,2]
[373469039,1753017107217,-838.97,0.00020273,2]
[373469040,1753017107227,-513.0,0.00020273,2]
[373469041,1753017107237,-3028.24,0.00020273,2]
[373469042,1753017107246,-565.62,0.00020273,2]
[373469043,1753017107256,-853.59,0.00020273,2]
[373469044,1753017107266,-1906.31,0.00020273,2]
[373469045,1753017107276,-480.0,0.00020273,2]
[373469046,1753017107285,-480.0,0.00020273,2]
[373469047,1753017107295,-480.0,0.00020273,2]
[373469048,1753017107305,-1696.96,0.00020273,2]
[373469049,1753017107315,-480.0,0.00020273,2]
[373469050,1753017107324,-981.38,0.00020273,2]
[373469051,1753017107334,-2026.54,0.00020273,2]
[373469052,1753017107343,-823.88,0.00020273,2]
[373469053,1753017107354,-165.775494,0.00020273,2]
[373469054,1753017107364,-163.081545,0.00020273,2]
[373469055,1753017107375,-480.0,0.00020273,2]
[373469056,1753017107385,-963.41,0.00020273,2]
[373469057,1753017107395,-830.46,0.00020273,2]
[373469058,1753017107406,-5709.5,0.00020273,2]
[373469059,1753017107416,-569.92,0.00020273,2]
[373469060,1753017107427,-480.0,0.00020273,2]
[373469061,1753017107438,-648.1,0.00020273,2]
[373469062,1753017107448,-729.74,0.00020273,2]
[373469063,1753017107458,-1388.48,0.00020273,2]
[373469064,1753017107468,-5215.18,0.00020273,2]
[373469065,1753017107479,-480.0,0.00020273,2]
[373469066,1753017107489,-827.12,0.00020273,2]
[373469067,1753017107499,-1044.1,0.00020273,2]
[373469068,1753017107510,-838.71,0.00020273,2]
[373469069,1753017107522,-2977.2,0.00020273,2]
[373469070,1753017107532,-993.38,0.00020273,2]
[373469071,1753017107544,-480.0,0.00020273,2]
[373469072,1753017107554,-738.73,0.00020273,2]
[373469073,1753017107564,-480.0,0.00020273,2]
[373469074,1753017107575,-942.6,0.00020273,2]
[373469075,1753017107584,-403.32,0.00020273,2]
[373469076,1753017107596,-480.0,0.00020273,2]
[373469077,1753017107607,-480.0,0.00020273,2]
[373469078,1753017107618,-846.89,0.00020273,2]
[373469079,1753017107629,-480.0,0.00020273,2]
[373469080,1753017107639,-1356.61,0.00020273,2]